fUST/lending_fUST_20240112
["ID","MTS","AMOUNT","RATE_DAILY","PERIOD"]
[311254673,1704997846857,-198.7191111,0.00030904,2]
[311254675,1704997846866,-198.7191111,0.00030904,2]
[311254676,1704997846877,-198.7191111,0.00030904,2]
[311254679,1704997846886,-198.7191111,0.00030904,2]
[311254680,1704997846896,-198.7191111,0.00030904,2]
[311254682,1704997846905,-198.7191111,0.00030904,2]
[311254685,1704997846914,-198.7191111,0.00030904,2]
[311254687,1704997846923,-198.7191111,0.00030904,2]
[311254689,1704997846932,-198.7191111,0.00030904,2]
[311254690,1704997846941,-198.7191111,0.00030904,2]
[311254692,1704997846952,-198.7191111,0.00030904,2]
[311254694,1704997846961,-198.7191111,0.00030904,2]
[311254696,1704997846971,-198.7191111,0.00030904,2]
[311254698,1704997846979,-198.7191111,0.00030904,2]
[311254700,1704997846989,-198.7191111,0.00030904,2]
[311254702,1704997846998,-198.7191111,0.00030904,2]
[311254704,1704997847007,-198.7191111,0.00030904,2]
[311254706,1704997847016,-198.7191111,0.00030904,2]
[311254708,1704997847026,-198.7191111,0.00030904,2]
[311254710,1704997847035,-198.7191111,0.00030904,2]
[311254712,1704997847044,-198.7191111,0.00030904,2]
[311254714,1704997847053,-198.7191111,0.00030904,2]
[311254716,1704997847061,-198.7191111,0.00030904,2]
[311254718,1704997847070,-198.7191111,0.00030904,2]
[311254720,1704997847080,-198.7191111,0.00030904,2]
[311254723,1704997847090,-198.7191111,0.00030904,2]
[311254724,1704997847098,-198.7191111,0.00030904,2]
[311254726,1704997847109,-198.7191111,0.00030904,2]
[311254728,1704997847118,-198.7191111,0.00030904,2]
[311254730,1704997847127,-198.7191111,0.00030904,2]
[311254732,1704997847136,-198.7191111,0.00030904,2]
[311254734,1704997847146,-198.7191111,0.00030904,2]
[311254737,1704997847155,-198.7191111,0.00030904,2]
[311254739,1704997847165,-198.7191111,0.00030904,2]
[311254740,1704997847174,-198.7191111,0.00030904,2]
[311254743,1704997847185,-198.7191111,0.00030904,2]
[311254745,1704997847196,-198.7191111,0.00030904,2]
[311254746,1704997847205,-198.7191111,0.00030904,2]
[311254748,1704997847214,-198.7191111,0.00030904,2]
[311254751,1704997847224,-198.7191111,0.00030904,2]
[311254753,1704997847233,-198.7191111,0.00030904,2]
[311254755,1704997847242,-198.7191111,0.00030904,2]
[311254757,1704997847253,-198.7191111,0.00030904,2]
[311254758,1704997847262,-198.7191111,0.00030904,2]
[311254760,1704997847271,-198.7191111,0.00030904,2]
[311254763,1704997847282,-198.7191111,0.00030904,2]
[311254765,1704997847291,-198.7191111,0.00030904,2]
[311254766,1704997847308,-198.7191111,0.00030904,2]
[311254769,1704997847317,-198.7191111,0.00030904,2]
[311254771,1704997847327,-198.7191111,0.00030904,2]
[311254773,1704997847337,-198.7191111,0.00030904,2]
[311254774,1704997847347,-198.7191111,0.00030904,2]
[311254776,1704997847356,-198.7191111,0.00030904,2]
[311254779,1704997847366,-198.7191111,0.00030904,2]
[311254780,1704997847375,-198.7191111,0.00030904,2]
[311254783,1704997847385,-198.7191111,0.00030904,2]
[311254784,1704997847394,-198.7191111,0.00030904,2]
[311254787,1704997847403,-198.7191111,0.00030904,2]
[311254788,1704997847413,-198.7191111,0.00030904,2]
[311254790,1704997847422,-198.7191111,0.00030904,2]
[311254792,1704997847431,-198.7191111,0.00030904,2]
[311254795,1704997847440,-151.0,0.00030904,2]
[311254796,1704997847450,-233.7324392,0.00030957,4]
[311254798,1704997847459,-587.62262936,0.00030957,4]
[311254800,1704997847468,-241.92426783,0.00030957,4]
[311254803,1704997847478,-677.8075086,0.00030957,120]
[311254820,1704997847633,-198.7191111,0.00029753,2]
[311254822,1704997847642,-500.0,0.00030136,2]
[311254824,1704997847651,-489.3728306,0.0003041,2]
[311256568,1704998310642,2832.0,0.0003,30]
[311256574,1704998560836,200.0,0.00025299,7]
[311256584,1704998860823,200.0,0.00025299,7]
[311256828,1704999038507,-155.08684864,0.00021883,2]
[311256830,1704999038517,-155.08684864,0.00021883,2]
[311256832,1704999038526,-1112.22182837,0.00021884,2]
[311256833,1704999038536,-326.7917286,0.00021885,2]
[311256834,1704999038545,-166.666666,0.00021918,2]
[311256836,1704999038554,-24900.0,0.00021928,2]
[311256838,1704999038563,-168.204174,0.00022072,2]
[311256840,1704999038572,-262.719647,0.00022219,2]
[311256841,1704999038582,-166.666666,0.00022431,2]
[311256843,1704999038592,-166.666666,0.00022944,2]
[311256844,1704999038603,-7772.58290207,0.00023,2]
[311256846,1704999038613,-25738.66665334,0.00023099,2]
[311256848,1704999038625,-20178.0,0.00023099,2]
[311257130,1704999041438,-1254.47,0.00023099,2]
[311257149,1704999041611,-4892.37817611,0.00023099,2]
[311257355,1704999043312,-615.42130348,0.00023099,2]
[311257357,1704999043323,-6000.0,0.00023099,2]
[311257683,1704999046447,-315.24764888,0.00023099,2]
[311257684,1704999046459,-211793.67020635,0.00023099,2]
[311257685,1704999046469,-2093.45221107,0.00023099,2]
[311257686,1704999046478,-7934.8034329,0.000231,2]
[311257687,1704999046487,-8393.22432645,0.000231,2]
[311257688,1704999046495,-1490.9858415,0.000231,2]
[311257689,1704999046505,-343.20044242,0.000231,2]
[311257690,1704999046514,-166.666666,0.00023456,2]
[311257691,1704999046522,-166.666666,0.00023969,2]
[311257692,1704999046531,-166.666666,0.00024482,2]
[311257693,1704999046540,-4005.39956635,0.00024699,2]
[311257694,1704999046550,-738.92721496,0.000247,2]
[311257695,1704999046559,-4711.91259146,0.00025,2]
[311257696,1704999046568,-164.574171,0.00025036,2]
[311257697,1704999046577,-1822.05331204,0.00025299,2]
[311257698,1704999046586,-525.99300196,0.00026,2]
[311257699,1704999046595,-155.06667867,0.00027,7]
[311257701,1704999046605,-280.0,0.00027829,15]
[311257703,1704999046614,-9100.04106185,0.000285,4]
[311257705,1704999046623,-150.37110783,0.00028584,2]
[311257707,1704999046632,-976.15471308,0.00028617,3]
[311257709,1704999046641,-325.48877393,0.00028617,3]
[311257711,1704999046651,-2429.79372672,0.00028617,3]
[311257713,1704999046660,-155.06512735,0.00029,2]
[311257715,1704999046670,-5807.00559693,0.00029,2]
[311257717,1704999046680,-151.16502729,0.0002915,2]
[311257719,1704999046690,-167.847804,0.00029311,2]
[311257721,1704999046699,-188.126477,0.00029311,2]
[311257723,1704999046707,-189.52504916,0.00029328,2]
[311257725,1704999046716,-152.31739518,0.00029787,2]
[311257727,1704999046725,-151.16502729,0.00029989,2]
[311257729,1704999046734,-783.53547067,0.0003,7]
[311257731,1704999046743,-815.96446693,0.0003,2]
[311257733,1704999046752,-2151.8403773,0.0003,4]
[311257735,1704999046762,-6975.26133049,0.0003,4]
[311257737,1704999046771,-463.46661998,0.0003,4]
[311257739,1704999046780,-10528.61647802,0.0003,4]
[311257741,1704999046789,-585.54897925,0.0003,2]
[311257743,1704999046798,-649.77067269,0.0003,4]
[311257744,1704999046807,-4452.61455502,0.0003,4]
[311257746,1704999046817,-501.00894022,0.0003,2]
[311257748,1704999046826,-1212.70330971,0.0003,2]
[311257750,1704999046834,-1212.80038033,0.0003,2]
[311257752,1704999046843,-163.7019,0.00030033,4]
[311257754,1704999046853,-469.54906413,0.00030033,2]
[311257756,1704999046862,-1632.09476148,0.00030034,4]
[311257758,1704999046871,-500.0,0.00030136,2]
[311257760,1704999046880,-500.0,0.00030136,2]
[311257762,1704999046889,-500.0,0.00030136,2]
[311257764,1704999046899,-500.0,0.00030136,2]
[311257766,1704999046908,-377.15772953,0.00030136,2]
[311257768,1704999046917,-500.0,0.00030136,2]
[311257770,1704999046927,-500.0,0.00030136,2]
[311257772,1704999046937,-500.0,0.00030136,2]
[311257774,1704999046946,-500.0,0.00030136,2]
[311257776,1704999046955,-303.4997889,0.00030136,2]
[311257778,1704999046964,-501.00207667,0.00030136,2]
[311257780,1704999046974,-500.0,0.00030136,2]
[311257782,1704999046983,-500.0,0.00030136,2]
[311257784,1704999046991,-500.0,0.00030136,2]
[311257786,1704999047000,-500.0,0.00030136,2]
[311257789,1704999047013,-500.0,0.00030136,2]
[311257790,1704999047022,-500.0,0.00030136,2]
[311257792,1704999047031,-500.0,0.00030136,2]
[311257794,1704999047040,-408.77456977,0.00030136,2]
[311257796,1704999047049,-500.0,0.00030136,2]
[311257798,1704999047059,-633.44866808,0.00030136,2]
[311257800,1704999047068,-500.0,0.00030136,2]
[311257802,1704999047077,-496.52210292,0.00030136,2]
[311257804,1704999047086,-215.02371983,0.00030136,2]
[311257806,1704999047095,-500.0,0.00030136,2]
[311257808,1704999047105,-507.68147259,0.00030136,2]
[311257810,1704999047114,-500.0,0.00030136,2]
[311257812,1704999047123,-502.49872204,0.00030136,2]
[311257814,1704999047131,-500.0,0.00030136,2]
[311257816,1704999047140,-500.0,0.00030136,2]
[311257818,1704999047149,-500.0,0.00030136,2]
[311257820,1704999047158,-500.0,0.00030136,2]
[311257822,1704999047167,-500.0,0.00030136,2]
[311257824,1704999047177,-500.0,0.00030136,2]
[311257826,1704999047186,-500.0,0.00030136,2]
[311257828,1704999047195,-500.0,0.00030136,2]
[311257830,1704999047205,-230.84334159,0.00030136,2]
[311257832,1704999047214,-500.0,0.00030136,2]
[311257834,1704999047225,-500.0,0.00030136,2]
[311257836,1704999047234,-500.0,0.00030136,2]
[311257838,1704999047246,-500.0,0.00030136,2]
[311257840,1704999047258,-500.0,0.00030136,2]
[311257843,1704999047271,-209.66995015,0.00030136,2]
[311257845,1704999047282,-1311.01,0.00030136,2]
[311257847,1704999047294,-500.0,0.00030136,2]
[311257849,1704999047306,-500.0,0.00030136,2]
[311257851,1704999047316,-500.0,0.00030136,2]
[311257854,1704999047327,-500.0,0.00030136,2]
[311257856,1704999047337,-500.0,0.00030136,2]
[311257858,1704999047348,-500.0,0.00030136,2]
[311257860,1704999047359,-500.0,0.00030136,2]
[311257862,1704999047371,-500.0,0.00030136,2]
[311257864,1704999047383,-294.64494609,0.00030136,2]
[311257866,1704999047394,-375.92448165,0.00030136,2]
[311257869,1704999047410,-293.46551835,0.00030136,2]
[311257871,1704999047422,-500.0,0.00030136,2]
[311257873,1704999047432,-500.0,0.00030136,2]
[311257875,1704999047443,-307.59763283,0.00030136,2]
[311257877,1704999047454,-500.0,0.00030136,2]
[311257879,1704999047465,-230.96082236,0.00030136,5]
[311259407,1704999460968,200.0,0.00023098,7]
[311259422,1704999589121,496.4931708,0.000239,5]
[311259428,1704999761079,200.0,0.00021927,7]
[311259429,1704999761861,280.0,0.00024119,7]
[311259504,1704999798868,155.08529691,0.00018402,3]
[311259524,1704999814866,155.08529691,0.00018402,3]
[311259552,1704999837072,155.08529691,0.00018402,3]
[311259564,1704999849643,155.08529691,0.00018402,2]
[311259566,1704999849997,683.46160028,0.00018402,2]
[311259572,1704999855625,534.17597659,0.00018402,2]
[311259573,1704999856365,619.54814371,0.00018402,2]
[311259577,1704999861004,733.40054285,0.00018402,2]
[311259579,1704999866872,155.08529691,0.00018402,3]
[311259581,1704999867988,683.46160028,0.00018402,2]
[311259583,1704999869725,189.3427086,0.00018402,2]
[311259585,1704999873003,733.40054285,0.00018402,2]
[311259586,1704999873738,182.72506568,0.00018402,2]
[311259587,1704999874366,756.44278875,0.00018402,2]
[311259589,1704999886883,155.08529691,0.00018402,3]
[311259590,1704999891977,683.46160028,0.00018402,2]
[311259591,1704999893004,733.40054285,0.00018402,2]
[311259593,1704999902884,155.08529691,0.00018402,3]
[311259595,1704999907975,683.46160028,0.00018402,2]
[311259596,1704999909005,733.40054285,0.00018402,2]
[311259812,1704999926882,155.08529691,0.00018402,3]
[311259814,1704999927979,683.46160028,0.00018402,2]
[311259815,1704999929013,126.17276859,0.00018402,2]
[311259863,1705000061898,280.0,0.00022263,7]
[311259864,1705000062682,391.0,0.00024489,7]
[311259885,1705000126848,10000.0,0.00017983,2]
[311259901,1705000181969,8745.38899074,0.00017444,2]
[311259910,1705000201976,1254.61100926,0.00017444,2]
[311259951,1705000234291,-155.08529691,0.00017442,2]
[311259952,1705000234301,-155.08529691,0.00017443,2]
[311259953,1705000234311,-613.93462958,0.00017444,2]
[311260038,1705000238536,-155.08529691,0.00017441,2]
[311260040,1705000238546,-6876.8433519,0.00017444,2]
[311260042,1705000238555,-451.81472846,0.00017976,2]
[311260044,1705000238564,-976.18563318,0.00017976,2]
[311260046,1705000238573,-155.08529691,0.00017976,2]
[311260048,1705000238582,-155.08529691,0.00017977,3]
[311260050,1705000238592,-2927.79076094,0.00017979,2]
[311260052,1705000238601,-7945.04739538,0.00017982,2]
[311260054,1705000238610,-1407.67858513,0.00017983,2]
[311260056,1705000238620,-14900.0,0.00017983,2]
[311260058,1705000238629,-294.785495,0.00018179,2]
[311260060,1705000238638,-1245.76372875,0.00018704,2]
[311260062,1705000238647,-168.204174,0.00019178,2]
[311260064,1705000238656,-1112.22182837,0.000195,2]
[311260065,1705000238665,-309.81411154,0.00019939,2]
[311260067,1705000238675,-200.0,0.00020239,2]
[311260069,1705000238686,-164.9350673,0.00020685,2]
[311260071,1705000238695,-655.5445397,0.00020783,2]
[311260073,1705000238705,-270787.85398816,0.00020784,2]
[311260075,1705000238715,-21296.00172954,0.00020785,2]
[311260077,1705000238724,-155.1054701,0.00020995,2]
[311260079,1705000238733,-314.30408612,0.00020995,2]
[311260081,1705000238742,-359.84731083,0.00020995,2]
[311260083,1705000238751,-415.16979059,0.00020995,2]
[311260086,1705000238761,-900.88644638,0.00020995,2]
[311260087,1705000238770,-1989.87267074,0.00020995,2]
[311260089,1705000238779,-351.80111995,0.00020995,2]
[311260091,1705000238788,-470.94036832,0.00020995,2]
[311260093,1705000238797,-851.16413748,0.00020995,2]
[311260095,1705000238806,-155.16287758,0.00020996,2]
[311260097,1705000238816,-520.61604034,0.00020996,2]
[311260099,1705000238824,-2410.28189253,0.00020996,2]
[311260101,1705000238833,-6602.15861025,0.00020996,2]
[311260103,1705000238842,-870.71956468,0.00020997,2]
[311260105,1705000238851,-246.27686201,0.00020997,2]
[311260107,1705000238860,-764.49149599,0.00020997,2]
[311260109,1705000238869,-245.49702411,0.00020997,2]
[311260111,1705000238878,-560.33964085,0.00020997,2]
[311260112,1705000238887,-797.5627138,0.00020997,2]
[311260113,1705000238896,-155.18321527,0.00020997,2]
[311260114,1705000238904,-10398.31288768,0.00020997,2]
[311260115,1705000238915,-20828.12716016,0.00020998,2]
[311260116,1705000238923,-194.41218273,0.00020998,2]
[311260117,1705000238934,-190.61378566,0.00020998,2]
[311260118,1705000238944,-232.56616313,0.00021,2]
[311260119,1705000238952,-21896.11056994,0.00021,2]
[311260120,1705000238961,-166.666666,0.00021918,2]
[311260121,1705000238970,-166.666666,0.00022431,2]
[311260122,1705000238979,-166.666666,0.00022944,2]
[311260123,1705000238988,-2093.45221107,0.00023,2]
[311260124,1705000238996,-9923.17263833,0.00023,2]
[311260125,1705000239005,-200.0,0.00023098,2]
[311260126,1705000239014,-166.666666,0.00023456,2]
[311260127,1705000239023,-164.93506729,0.00023893,2]
[311260128,1705000239032,-166.666666,0.00023969,2]
[311260129,1705000239041,-614.12133667,0.00024,2]
[311260130,1705000239050,-4005.39956635,0.00024,2]
[311260131,1705000239060,-166.666666,0.00024482,2]
[311260132,1705000239069,-1822.05331204,0.00024489,2]
[311260133,1705000239078,-687.75702701,0.000247,2]
[311260134,1705000239087,-2097.96974047,0.00025,2]
[311260135,1705000239096,-4711.91259146,0.00025,2]
[311260136,1705000239106,-525.99300196,0.00026,2]
[311260138,1705000239115,-200.0,0.00026938,15]
[311260140,1705000239124,-348.0,0.00026938,15]
[311260142,1705000239134,-460.6542226,0.00027,2]
[311260144,1705000239143,-155.08684864,0.00027,7]
[311260146,1705000239152,-164.93506729,0.00027102,2]
[311260148,1705000239162,-294.785495,0.00027268,2]
[311260150,1705000239170,-721.70066033,0.00027397,2]
[311260152,1705000239180,-190.47006992,0.000279,2]
[311260154,1705000239189,-175.17258892,0.00028617,3]
[311260156,1705000239198,-2534.24456258,0.00028617,3]
[311260158,1705000239207,-959.04991457,0.00028617,3]
[311260160,1705000239216,-9100.04106185,0.00028629,4]
[311260162,1705000239225,-155.08684864,0.00029,2]
[311260164,1705000239234,-3025.449916,0.00029,2]
[311260165,1705000239243,-10370.2527947,0.00029,2]
[311260167,1705000239252,-44466.72270216,0.00029,2]
[311260169,1705000239261,-49610.06269275,0.000293,5]
[311260171,1705000239270,-303.867608,0.00029311,2]
[311260173,1705000239279,-187.751045,0.00029311,2]
[311260175,1705000239288,-201.220704,0.00029311,2]
[311260177,1705000239297,-157.19971,0.00029311,2]
[311260179,1705000239306,-360.83325,0.00029311,2]
[311260181,1705000239315,-242.828739,0.00029311,2]
[311260183,1705000239324,-164.552346,0.00029311,2]
[311260185,1705000239333,-208.04079,0.00029311,2]
[311260187,1705000239342,-620.00098186,0.0002937,2]
[311260189,1705000239352,-166.92274785,0.00029612,2]
[311260191,1705000239361,-159.41039242,0.00029652,2]
[311260193,1705000239370,-159.41039242,0.00029658,2]
[311260195,1705000239379,-303.867608,0.00029677,2]
[311260197,1705000239388,-187.751045,0.00029677,2]
[311260199,1705000239397,-201.220704,0.00029677,2]
[311260201,1705000239407,-157.19971,0.00029677,2]
[311260203,1705000239417,-360.83325,0.00029677,2]
[311260205,1705000239426,-242.828739,0.00029677,2]
[311260207,1705000239437,-159.41039242,0.00029693,2]
[311260209,1705000239446,-254.23001474,0.00029701,3]
[311260211,1705000239456,-159.41039242,0.00029748,2]
[311260213,1705000239465,-37808.05296615,0.0002979,7]
[311260215,1705000239473,-152.31739518,0.00029862,2]
[311260217,1705000239483,-233.7324392,0.00029998,2]
[311260219,1705000239493,-478.51187948,0.00029999,2]
[311260221,1705000239502,-587.62262936,0.00029999,2]
[311260223,1705000239512,-560.08,0.00029999,2]
[311260225,1705000239521,-899.90173962,0.0003,2]
[311260227,1705000239530,-6183.76397391,0.0003,2]
[311260229,1705000239539,-2188.79308094,0.0003,2]
[311260231,1705000239548,-3799.999999,0.0003,2]
[311260233,1705000239558,-8912.47143386,0.0003,3]
[311260235,1705000239566,-6975.26133049,0.0003,4]
[311260237,1705000239575,-22726.82712211,0.0003,3]
[311260239,1705000239584,-8035.64264101,0.0003,14]
[311260241,1705000239594,-36066.81272948,0.0003,10]
[311260243,1705000239603,-1000.18263852,0.0003,10]
[311260245,1705000239611,-18553.45565274,0.0003,2]
[311260247,1705000239621,-698.89862508,0.0003,2]
[311260249,1705000239630,-10528.61647802,0.0003,4]
[311260251,1705000239639,-2151.8403773,0.0003,4]
[311260253,1705000239648,-686.8051383,0.0003,4]
[311260255,1705000239656,-815.96446693,0.0003,2]
[311260257,1705000239665,-18742.68961404,0.0003,4]
[311260259,1705000239675,-163.55638359,0.0003,5]
[311260261,1705000239686,-55552.1602185,0.0003,15]
[311260263,1705000239695,-463.46661998,0.0003,4]
[311260265,1705000239704,-244.50330111,0.0003,7]
[311260267,1705000239713,-639.80669723,0.0003,4]
[311260269,1705000239721,-1212.75184308,0.0003,2]
[311260271,1705000239730,-167.0,0.0003,2]
[311260273,1705000239740,-154.19146236,0.00030036,5]
[311260275,1705000239749,-154.19146236,0.00030036,5]
[311260277,1705000239758,-154.19146236,0.00030036,5]
[311260279,1705000239766,-154.19146236,0.00030036,5]
[311260281,1705000239775,-154.19146236,0.00030036,5]
[311260283,1705000239784,-154.19146236,0.00030036,5]
[311260285,1705000239793,-154.19146236,0.00030036,5]
[311260287,1705000239803,-154.19146236,0.00030036,5]
[311260289,1705000239812,-154.19146236,0.00030036,5]
[311260291,1705000239821,-154.19146236,0.00030036,5]
[311260293,1705000239830,-154.19146236,0.00030036,5]
[311260294,1705000239839,-154.19146236,0.00030036,5]
[311260296,1705000239848,-154.19146236,0.00030036,5]
[311260298,1705000239857,-154.19146236,0.00030036,5]
[311260300,1705000239866,-154.19146236,0.00030036,5]
[311260302,1705000239875,-154.19146236,0.00030036,5]
[311260304,1705000239883,-154.19146236,0.00030036,5]
[311260306,1705000239892,-154.19,0.00030036,5]
[311260308,1705000239901,-555.08926449,0.00030036,5]
[311260309,1705000239910,-555.08926449,0.00030036,5]
[311260311,1705000239919,-555.08926449,0.00030036,5]
[311260313,1705000239927,-555.08926449,0.00030036,5]
[311260315,1705000239938,-555.08926449,0.00030036,5]
[311260317,1705000239948,-555.08926449,0.00030036,5]
[311260319,1705000239957,-555.08926449,0.00030036,5]
[311260321,1705000239967,-555.08926449,0.00030036,5]
[311260323,1705000239976,-555.08926449,0.00030036,5]
[311260325,1705000239986,-555.08926449,0.00030036,5]
[311260327,1705000239995,-555.08926449,0.00030036,5]
[311260329,1705000240004,-555.08926449,0.00030036,5]
[311260331,1705000240013,-555.08926449,0.00030036,5]
[311260333,1705000240022,-555.08926449,0.00030036,5]
[311260335,1705000240031,-303.867608,0.00030043,2]
[311260337,1705000240040,-187.751045,0.00030043,2]
[311260339,1705000240049,-157.19971,0.00030043,2]
[311260341,1705000240058,-201.220704,0.00030043,2]
[311260343,1705000240067,-360.83325,0.00030043,2]
[311260345,1705000240075,-242.828739,0.00030043,2]
[311260346,1705000240084,-555.08926449,0.00030096,5]
[311260348,1705000240093,-300.0,0.000301,14]
[311260350,1705000240101,-197.37626976,0.0003013,2]
[311260352,1705000240110,-309.81411154,0.00030133,2]
[311260354,1705000240120,-1049.10141165,0.00030133,4]
[311260356,1705000240129,-212.90723887,0.00030133,4]
[311260358,1705000240139,-318.52610766,0.00030133,2]
[311260360,1705000240149,-747.96142575,0.00030133,120]
[311260362,1705000240158,-1126.49701628,0.00030133,4]
[311260364,1705000240168,-946.99985386,0.00030133,4]
[311260366,1705000240176,-237.60910002,0.00030133,4]
[311260368,1705000240187,-677.25499859,0.00030133,4]
[311260370,1705000240196,-3000.0,0.00030133,2]
[311260372,1705000240204,-241.92426783,0.00030134,4]
[311260374,1705000240214,-860.62181226,0.00030134,4]
[311260376,1705000240223,-409.88428547,0.00030136,2]
[311260378,1705000240232,-501.00894022,0.00030136,2]
[311260380,1705000240241,-649.77067269,0.00030136,4]
[311260382,1705000240250,-155.76608,0.00030136,4]
[311260384,1705000240258,-155.08684864,0.00030136,2]
[311260386,1705000240267,-4452.61455502,0.00030136,4]
[311260388,1705000240276,-282.67247261,0.00030136,3]
[311260390,1705000240285,-1200.0,0.00030136,4]
[311260392,1705000240294,-500.0,0.00030136,2]
[311260394,1705000240304,-500.0,0.00030136,2]
[311260396,1705000240312,-500.0,0.00030136,2]
[311260398,1705000240322,-500.0,0.00030136,2]
[311260400,1705000240331,-500.0,0.00030136,2]
[311260402,1705000240340,-500.0,0.00030136,2]
[311260404,1705000240349,-500.0,0.00030136,2]
[311260406,1705000240358,-500.0,0.00030136,2]
[311260408,1705000240368,-500.0,0.00030136,2]
[311260410,1705000240377,-500.0,0.00030136,2]
[311260412,1705000240386,-500.0,0.00030136,2]
[311260414,1705000240394,-505.49538568,0.00030136,2]
[311260416,1705000240404,-503.18365884,0.00030136,2]
[311260417,1705000240415,-500.0,0.00030136,2]
[311260419,1705000240424,-500.0,0.00030136,2]
[311260421,1705000240434,-500.0,0.00030136,2]
[311260423,1705000240443,-500.0,0.00030136,2]
[311260425,1705000240454,-500.0,0.00030136,2]
[311260427,1705000240462,-500.0,0.00030136,2]
[311260429,1705000240471,-500.0,0.00030136,2]
[311260431,1705000240481,-500.0,0.00030136,2]
[311260433,1705000240490,-421.07384829,0.00030136,2]
[311260434,1705000240499,-500.0,0.00030136,2]
[311260436,1705000240509,-674.76,0.00030136,2]
[311260438,1705000240517,-500.0,0.00030136,2]
[311260440,1705000240526,-500.0,0.00030136,2]
[311260442,1705000240535,-500.0,0.00030136,2]
[311260444,1705000240544,-500.0,0.00030136,2]
[311260446,1705000240553,-500.0,0.00030136,2]
[311260448,1705000240562,-500.0,0.00030136,2]
[311260450,1705000240571,-576.25083322,0.00030136,2]
[311260452,1705000240580,-503.69029425,0.00030136,2]
[311260454,1705000240589,-500.0,0.00030136,2]
[311260456,1705000240598,-500.0,0.00030136,2]
[311260458,1705000240606,-500.0,0.00030136,2]
[311260460,1705000240615,-500.0,0.00030136,2]
[311260472,1705000240708,-500.0,0.00030136,2]
[311260474,1705000240732,-281.74517376,0.00030136,2]
[311260476,1705000240741,-1000.0,0.00030136,2]
[311260478,1705000240750,-500.0,0.00030136,2]
[311260480,1705000240759,-500.0,0.00030136,2]
[311260481,1705000240768,-500.0,0.00030136,2]
[311260483,1705000240777,-500.0,0.00030136,2]
[311260485,1705000240786,-500.0,0.00030136,2]
[311260487,1705000240794,-500.55430526,0.00030136,2]
[311260489,1705000240803,-500.0,0.00030136,2]
[311260491,1705000240812,-500.0,0.00030136,2]
[311260493,1705000240821,-500.0,0.00030136,2]
[311260495,1705000240830,-503.56838718,0.00030136,2]
[311260497,1705000240839,-257.42195307,0.00030136,2]
[311260499,1705000240848,-500.0,0.00030136,2]
[311260501,1705000240857,-500.0,0.00030136,2]
[311260503,1705000240866,-510.03142022,0.00030136,2]
[311260505,1705000240875,-500.0,0.00030136,2]
[311260507,1705000240884,-500.0,0.00030136,2]
[311260509,1705000240893,-500.0,0.00030136,2]
[311260511,1705000240902,-500.0,0.00030136,2]
[311260513,1705000240911,-502.011769,0.00030136,2]
[311260515,1705000240920,-500.0,0.00030136,2]
[311260517,1705000240930,-500.0,0.00030136,2]
[311260519,1705000240939,-548.77,0.00030136,2]
[311260521,1705000240948,-560.66390144,0.00030136,2]
[311260523,1705000240957,-500.9535878,0.00030136,2]
[311260524,1705000240966,-500.0,0.00030136,2]
[311260526,1705000240975,-412.25216866,0.00030136,2]
[311260528,1705000240984,-502.26759104,0.00030136,2]
[311260530,1705000240993,-500.0,0.00030136,2]
[311260532,1705000241003,-500.0,0.00030136,2]
[311260534,1705000241012,-504.3360633,0.00030136,2]
[311260536,1705000241021,-593.4206134,0.00030136,2]
[311260538,1705000241031,-500.0,0.00030136,2]
[311260540,1705000241040,-500.0,0.00030136,2]
[311260542,1705000241049,-500.0,0.00030136,2]
[311260544,1705000241058,-500.0,0.00030136,2]
[311260546,1705000241067,-500.0,0.00030136,2]
[311260548,1705000241076,-500.0,0.00030136,2]
[311260550,1705000241085,-500.0,0.00030136,2]
[311260552,1705000241095,-500.0,0.00030136,2]